bitfinex-derivatives/quotes_BTCF0:USTF0_20241021
["timestamp","ask_amount","ask_price","bid_price","bid_amount"]
[1729469038882,0.046671,69060.0,69059.0,0.072412]
[1729469039081,0.046671,69060.0,69059.0,0.17903429]
[1729469039580,0.046671,69060.0,69059.0,0.10662229]
[1729469040376,0.11908,69060.0,69059.0,0.10662229]
[1729469040578,0.11908,69060.0,69059.0,0.17903429]
[1729469041285,0.02063036,69063.0,69061.0,0.07241]
[1729469041486,0.04667,69060.0,69057.0,0.08668131]
[1729469041785,0.00317453,69060.0,69059.0,0.08668131]
[1729469042084,0.00317453,69060.0,69059.0,0.19329445]
[1729469042476,0.00317453,69060.0,69059.0,0.26565892]
[1729469042782,0.00317453,69060.0,69059.0,0.17897761]
[1729469042972,0.046672,69062.0,69059.0,0.19324692]
[1729469043176,0.072404,69067.0,69062.0,0.072409]
[1729469043177,0.11908,69063.0,69062.0,0.072409]
[1729469043371,0.1202,69064.0,69063.0,0.072407]
[1729469043573,0.1202,69064.0,69063.0,0.17897261]
[1729469044380,0.1202,69065.0,69064.0,0.072407]
[1729469044587,0.1202,69065.0,69064.0,0.17897261]
[1729469045182,0.1202,69065.0,69064.0,0.25118612]
[1729469047284,0.09380247,69065.0,69064.0,0.07221351]
[1729469047481,0.09380247,69065.0,69063.0,0.07221351]
[1729469048191,0.09380247,69065.0,69062.0,0.07221351]
[1729469048490,0.21396247,69065.0,69063.0,0.14462151]
[1729469048684,0.14155647,69065.0,69064.0,0.072407]
[1729469048885,0.14155647,69065.0,69064.0,0.25083791]
[1729469049285,0.14155647,69065.0,69064.0,0.25081556]
[1729469049779,0.02139647,69065.0,69064.0,0.25081556]
[1729469049980,0.072405,69066.0,69064.0,0.25081556]
[1729469050184,0.072405,69066.0,69064.0,0.14462051]
[1729469050185,0.09332306,69066.0,69064.0,0.14462051]
[1729469050487,0.02091806,69066.0,69065.0,0.14461951]
[1729469050688,0.12016,69070.0,69065.0,0.10621959]
[1729469050987,0.192561,69070.0,69069.0,0.07222049]
[1729469051181,0.072402,69069.0,69068.0,0.07222049]
[1729469051582,0.072402,69069.0,69068.0,0.1783669]
[1729469051782,0.072402,69069.0,69067.0,0.07222049]
[1729469051986,0.072402,69069.0,69068.0,0.07222049]
[1729469052495,0.072402,69069.0,69067.0,0.07222049]
[1729469052891,0.072402,69069.0,69068.0,0.07222049]
[1729469053193,0.072402,69069.0,69067.0,0.07222049]
[1729469053393,0.072402,69069.0,69068.0,0.17835193]
[1729469053780,0.072402,69069.0,69067.0,0.07222049]
[1729469055201,0.072402,69069.0,69066.0,0.072405]
[1729469055202,0.072402,69069.0,69066.0,0.14462549]
[1729469057105,0.072404,69067.0,69066.0,0.07222049]
[1729469057311,0.072405,69066.0,69065.0,0.07222049]
[1729469057702,0.072405,69066.0,69065.0,0.17835839]
[1729469058415,0.072405,69066.0,69065.0,0.10615823]
[1729469058611,0.072405,69066.0,69065.0,0.17836312]
[1729469058806,0.072405,69066.0,69065.0,0.10615823]
[1729469060214,0.0931553,69066.0,69065.0,0.10615823]
[1729469064912,0.4539553,69066.0,69065.0,0.17843693]
[1729469065114,0.072406,69065.0,69064.0,0.0722787]
[1729469065413,0.072406,69065.0,69062.0,0.0722787]
[1729469065622,0.072406,69065.0,69062.0,0.07230558]
[1729469065914,0.072411,69060.0,69059.0,0.08668131]
[1729469066115,0.072411,69060.0,69059.0,0.19331507]
[1729469066422,0.072411,69060.0,69059.0,0.10661481]
[1729469066715,0.072411,69060.0,69059.0,0.30606021]
[1729469068614,0.0207503,69066.0,69059.0,0.23364821]
[1729469068815,0.3608,69073.0,69064.0,0.3608]
[1729469069015,0.192559,69072.0,69071.0,0.072399]
[1729469069320,0.192559,69072.0,69071.0,0.3056375]
[1729469069503,0.12016,69072.0,69071.0,0.3056375]
[1729469070216,0.12016,69072.0,69071.0,0.17901381]
[1729469071511,0.20941789,69073.0,69071.0,0.17901381]
[1729469071708,0.192558,69073.0,69072.0,0.10661481]
[1729469072412,0.192558,69073.0,69072.0,0.19349646]
[1729469072614,0.072398,69073.0,69072.0,0.10661481]
[1729469072815,0.0189676,69075.0,69074.0,0.072396]
[1729469073016,0.0189676,69075.0,69074.0,0.26589287]
[1729469073206,0.0189676,69075.0,69074.0,0.17901081]
[1729469073818,0.0189676,69075.0,69074.0,0.30537949]
[1729469075315,0.0189676,69075.0,69074.0,0.17901081]
[1729469075723,0.0913626,69075.0,69074.0,0.10661481]
[1729469078215,0.09876636,69075.0,69074.0,0.10661481]
[1729469083219,0.02637136,69075.0,69072.0,0.08683636]
[1729469083616,0.072398,69073.0,69072.0,0.08683636]
[1729469084211,0.072399,69072.0,69070.0,0.0724]
[1729469084910,0.0724,69071.0,69070.0,0.0724]
[1729469085109,0.08398,69071.0,69070.0,0.0724]
[1729469087614,0.18532,69071.0,69070.0,0.0724]
[1729469090213,0.22151,69071.0,69070.0,0.0724]
[1729469090517,0.14911,69071.0,69070.0,0.17859494]
[1729469090920,0.22151,69071.0,69070.0,0.17859594]
[1729469091424,0.14911,69071.0,69068.0,0.07236109]
[1729469091722,0.14911,69071.0,69064.0,0.3608]
[1729469091723,0.072402,69069.0,69067.0,0.07236199]
[1729469091929,0.072402,69069.0,69068.0,0.17849472]
[1729469092119,0.072403,69068.0,69067.0,0.07236307]
[1729469093327,0.072404,69067.0,69066.0,0.07236307]
[1729469093526,0.072404,69067.0,69066.0,0.17851987]
[1729469094027,0.086874,69067.0,69066.0,0.17851987]
[1729469094225,0.086874,69067.0,69066.0,0.17850237]
[1729469095225,0.086874,69067.0,69066.0,0.07234557]
[1729469095431,0.072405,69066.0,69065.0,0.07234557]
[1729469096116,0.196445,69066.0,69065.0,0.07234557]
[1729469096425,0.196445,69066.0,69050.0,0.0315]
[1729469096426,0.072408,69063.0,69062.0,0.07234557]
[1729469096630,0.07241,69061.0,69060.0,0.07234557]
[1729469096827,0.3608,69063.0,69059.0,0.07234557]
[1729469097124,0.3608,69063.0,69058.0,0.07234557]
[1729469097125,0.072412,69059.0,69058.0,0.07234557]
[1729469097334,0.072413,69058.0,69057.0,0.07234557]
[1729469097521,0.072413,69058.0,69057.0,0.10632105]
[1729469097826,0.072413,69058.0,69057.0,0.17865735]
[1729469098126,0.072413,69058.0,69057.0,0.10632105]
[1729469098426,0.072409,69062.0,69057.0,0.17862973]
[1729469098627,0.072409,69062.0,69060.0,0.05785371]
[1729469098827,0.033,69061.0,69060.0,0.05785622]
[1729469099129,0.072411,69060.0,69059.0,0.05785622]
[1729469099323,0.033,69061.0,69057.0,0.05785622]
[1729469099523,0.072413,69058.0,69057.0,0.05785622]
[1729469100031,0.3608,69058.0,69055.0,0.05785622]
[1729469100228,0.072416,69055.0,69054.0,0.05785622]
[1729469101337,0.08919308,69055.0,69054.0,0.01133646]
[1729469101522,0.072421,69051.0,69048.0,0.14474217]
[1729469101723,0.072423,69049.0,69048.0,0.07231817]
[1729469101925,0.196462,69050.0,69048.0,0.25121199]
[1729469102227,0.196462,69050.0,69048.0,0.14474217]
[1729469102442,0.196462,69050.0,69048.0,0.072424]
[1729469102725,0.0301,69057.0,69049.0,0.17834711]
[1729469102726,0.12012,69051.0,69049.0,0.17834711]
[1729469102930,0.12012,69051.0,69050.0,0.14474017]
[1729469103134,0.12012,69051.0,69050.0,0.25068765]
[1729469103433,0.12012,69051.0,69050.0,0.14474017]
[1729469103816,0.072417,69055.0,69050.0,0.14474017]
[1729469104016,0.12012,69054.0,69052.0,0.072419]
[1729469104219,0.12012,69054.0,69053.0,0.072419]
[1729469106923,0.192537,69055.0,69053.0,0.072419]
[1729469107135,0.0362,69054.0,69053.0,0.072419]
[1729469108039,0.0362,69054.0,69053.0,0.433219]
[1729469108327,0.072409,69063.0,69061.0,0.07241]
[1729469108526,0.072409,69063.0,69053.0,0.4664839]
[1729469108527,0.072409,69063.0,69062.0,0.0319]
[1729469109434,0.12012,69065.0,69054.0,0.1194272]
[1729469109435,0.072412,69059.0,69057.0,0.07221347]
[1729469109734,0.072413,69058.0,69057.0,0.07221778]
[1729469109927,0.101273,69058.0,69057.0,0.17778227]
[1729469111347,0.101273,69058.0,69057.0,0.10556449]
[1729469112236,0.02886,69058.0,69057.0,0.17797849]
[1729469113041,0.04538683,69058.0,69057.0,0.17797849]
[1729469114435,0.04538683,69058.0,69057.0,0.072414]
[1729469114639,0.04538683,69058.0,69057.0,0.17818961]
[1729469114837,0.05696683,69058.0,69057.0,0.17818961]
[1729469116437,0.05696683,69058.0,69057.0,0.26501681]
[1729469116636,0.05696683,69058.0,69057.0,0.17818961]
[1729469116837,0.05696683,69058.0,69057.0,0.10577561]
[1729469116838,0.12937983,69058.0,69057.0,0.10577561]
[1729469118033,0.12937983,69058.0,69057.0,0.25035919]
[1729469118236,0.12937983,69058.0,69057.0,0.1445849]
[1729469118741,0.12937983,69058.0,69057.0,0.25066828]
[1729469119234,0.12937983,69058.0,69057.0,0.17839718]
[1729469123934,0.12937983,69058.0,69057.0,0.17847953]
[1729469126135,0.12937983,69058.0,69057.0,0.10618752]
[1729469126848,0.14385983,69058.0,69057.0,0.10618752]
[1729469127451,0.14385983,69058.0,69057.0,0.19301472]
[1729469128043,0.14385983,69058.0,69057.0,0.19072472]
[1729469128651,0.14385983,69058.0,69057.0,0.10389752]
[1729469129039,0.14385983,69058.0,69057.0,0.19072472]
[1729469129240,0.14385983,69058.0,69057.0,0.10389752]
[1729469129448,0.14385983,69058.0,69057.0,0.19072472]
[1729469131054,0.14385983,69058.0,69057.0,0.10389752]
[1729469131248,0.14385983,69058.0,69057.0,0.19077867]
[1729469131446,0.14385983,69058.0,69057.0,0.10389752]
[1729469131648,0.02070018,69058.0,69057.0,0.3026764]
[1729469132756,0.03724806,69058.0,69057.0,0.3026764]
[1729469133246,0.10966106,69058.0,69057.0,0.3026764]
[1729469134043,0.10966106,69058.0,69057.0,0.17631152]
[1729469134749,0.10966106,69058.0,69057.0,0.26321759]
[1729469136254,0.10966106,69058.0,69057.0,0.17631152]
[1729469136550,0.10966106,69058.0,69057.0,0.26322402]
[1729469136755,0.10966106,69058.0,69057.0,0.26322386]
[1729469136948,0.10966106,69058.0,69057.0,0.17631152]
[1729469137554,0.10966106,69058.0,69057.0,0.26322806]
[1729469138256,0.21102106,69058.0,69057.0,0.17631152]
[1729469138443,0.21102106,69058.0,69057.0,0.30248341]
[1729469143251,0.21102106,69058.0,69057.0,0.23006941]
[1729469144559,0.21102106,69058.0,69057.0,0.10389752]
[1729469145554,0.21102106,69058.0,69057.0,0.23005282]
[1729469145755,0.21102106,69058.0,69057.0,0.23193734]
[1729469147059,0.21102106,69058.0,69057.0,0.10581268]
[1729469147260,0.21102106,69058.0,69057.0,0.23201174]
[1729469147562,0.21102106,69058.0,69057.0,0.23198969]
[1729469147758,0.21102106,69058.0,69057.0,0.10581268]
[1729469147962,0.13860806,69058.0,69057.0,0.23188689]
[1729469148162,0.21102106,69058.0,69057.0,0.2318992]
[1729469148464,0.21102106,69058.0,69057.0,0.10578966]
[1729469148967,0.21102106,69058.0,69057.0,0.23187985]
[1729469149151,0.21102106,69058.0,69057.0,0.30429385]
[1729469149664,0.13860806,69058.0,69057.0,0.30429385]
[1729469150960,0.13860806,69058.0,69057.0,0.17820366]
[1729469151751,0.13960806,69058.0,69057.0,0.17820366]
[1729469152464,0.21202106,69058.0,69057.0,0.10578966]
[1729469156467,0.21202106,69058.0,69057.0,0.23210511]
[1729469157166,0.21202106,69058.0,69057.0,0.10578966]
[1729469157564,0.21202106,69058.0,69057.0,0.10602692]
[1729469157872,0.21202106,69058.0,69057.0,0.10373692]
[1729469158467,0.21202106,69058.0,69057.0,0.23005789]
[1729469158974,0.21202106,69058.0,69057.0,0.10373692]
[1729469159357,0.21202106,69058.0,69057.0,0.23000633]
[1729469159661,0.21202106,69058.0,69057.0,0.10373692]
[1729469159863,0.21202106,69058.0,69057.0,0.23002451]
[1729469160063,0.13960806,69058.0,69057.0,0.30243851]
[1729469161168,0.13960806,69058.0,69057.0,0.19857917]
[1729469161774,0.08886118,69058.0,69057.0,0.19857917]
[1729469162157,0.10569498,69058.0,69057.0,0.19857917]
[1729469162869,0.08886118,69058.0,69057.0,0.19857917]
[1729469163073,0.00217232,69066.0,69065.0,0.072406]
[1729469163257,0.00217232,69066.0,69065.0,0.55937117]
[1729469165059,0.01110232,69066.0,69065.0,0.55937117]
[1729469165370,0.12552,69078.0,69065.0,0.99373117]
[1729469165574,0.072394,69077.0,69075.0,0.08682575]
[1729469165770,0.072394,69077.0,69074.0,0.08682575]
[1729469166365,0.072394,69077.0,69076.0,0.072393]
[1729469166765,0.072394,69077.0,69076.0,0.14469046]
[1729469166766,0.083974,69077.0,69076.0,0.14469046]
[1729469168665,0.083974,69077.0,69076.0,0.072393]
[1729469170471,0.072396,69075.0,69074.0,0.07229746]
[1729469170674,0.01158,69077.0,69073.0,0.07229746]
[1729469170975,0.01158,69077.0,69074.0,0.072396]
[1729469171473,0.083973,69077.0,69074.0,0.072396]
[1729469171680,0.01158,69077.0,69073.0,0.07229746]
[1729469171882,0.072395,69075.0,69073.0,0.07229746]
[1729469173178,0.072395,69075.0,69073.0,0.14469446]
[1729469174974,0.072396,69074.0,69073.0,0.07229746]
[1729469175379,0.072398,69073.0,69070.0,0.072401]
[1729469175679,0.072398,69073.0,69072.0,0.07220202]
[1729469175876,0.072398,69073.0,69072.0,0.17677098]
[1729469176179,0.072398,69073.0,69070.0,0.072401]
[1729469176180,0.072399,69072.0,69071.0,0.07220202]
[1729469176377,0.072399,69072.0,69070.0,0.07220202]
[1729469176574,0.072399,69072.0,69071.0,0.07220202]
[1729469176785,0.072399,69072.0,69071.0,0.14460202]
[1729469176982,0.072399,69072.0,69071.0,0.0724]
[1729469177674,0.072399,69072.0,69071.0,0.14460202]
[1729469177876,0.072399,69072.0,69071.0,0.24923446]
[1729469178179,0.072399,69072.0,69071.0,0.14460202]
[1729469178582,0.072399,69072.0,69071.0,0.24921195]
[1729469178897,0.072399,69072.0,69071.0,0.14460202]
[1729469179068,0.072399,69072.0,69071.0,0.24921465]
[1729469179278,0.072399,69072.0,69071.0,0.17701263]
[1729469179674,0.151849,69072.0,69071.0,0.17689565]
[1729469179978,0.07945,69072.0,69071.0,0.17689565]
[1729469181465,0.07945,69072.0,69071.0,0.2941214]
[1729469181780,0.07945,69072.0,69071.0,0.20729565]
[1729469182078,0.07945,69072.0,69071.0,0.29393135]
[1729469183082,0.03596419,69072.0,69071.0,0.65473135]
[1729469183381,0.10836319,69072.0,69071.0,0.65474517]
[1729469183587,0.03596419,69072.0,69071.0,0.56809565]
[1729469183979,0.03596419,69072.0,69071.0,0.65474517]
[1729469185478,0.03596419,69072.0,69071.0,0.56809565]
[1729469185879,0.03596419,69072.0,69071.0,0.20729565]
[1729469186280,0.03596419,69072.0,69071.0,0.29394517]
[1729469187482,0.03596419,69072.0,69071.0,0.20729565]
[1729469187677,0.03596419,69072.0,69071.0,0.33158225]
[1729469188182,0.03596419,69072.0,69071.0,0.3316422]
[1729469188878,0.10836319,69072.0,69071.0,0.3316422]
[1729469189275,0.10836319,69072.0,69071.0,0.19130777]
[1729469189477,0.10836319,69072.0,69071.0,0.10449565]
[1729469189674,0.11994319,69072.0,69071.0,0.10449565]
[1729469189875,0.11994319,69072.0,69071.0,0.10410565]
[1729469190273,0.11994319,69072.0,69069.0,0.02245578]
[1729469190274,0.11254419,69072.0,69069.0,0.02245578]
[1729469190474,0.072407,69064.0,69062.0,0.08682457]
[1729469190677,0.48628,69066.0,69061.0,0.00217189]
[1729469192383,0.072409,69062.0,69061.0,0.08899646]
[1729469192684,0.072409,69062.0,69061.0,0.00217189]
[1729469193283,0.072417,69054.0,69052.0,0.08682457]
[1729469193484,0.072422,69050.0,69049.0,0.08682457]
[1729469193678,0.072422,69050.0,69046.0,0.072426]
[1729469193679,0.1583,69053.0,69048.0,0.08682457]
[1729469193893,0.072424,69048.0,69047.0,0.08682457]
[1729469194085,0.072424,69048.0,69045.0,0.3608]
[1729469194086,0.1583,69053.0,69045.0,0.3608]
[1729469194302,0.072426,69046.0,69045.0,0.3608]
[1729469194593,0.072426,69046.0,69045.0,0.433227]
[1729469196386,0.09293254,69046.0,69045.0,0.433227]
[1729469196581,0.09293254,69046.0,69045.0,0.15910766]
[1729469196777,0.02050654,69046.0,69042.0,0.08668066]
[1729469196983,0.3608,69049.0,69039.0,0.00217258]
[1729469197181,0.072432,69040.0,69039.0,0.00217258]
[1729469198674,0.07966073,69040.0,69039.0,0.05989839]
[1729469199485,0.13362873,69040.0,69037.0,0.05772581]
[1729469199783,0.072434,69039.0,69037.0,0.05772581]
[1729469199982,0.13362873,69040.0,69037.0,0.05772581]
[1729469199983,0.072434,69038.0,69037.0,0.05772581]
[1729469200583,0.072434,69038.0,69036.0,0.05772581]
[1729469201795,0.072434,69038.0,69035.0,0.13016281]
[1729469201985,0.072434,69038.0,69036.0,0.05772581]
[1729469202494,0.072434,69038.0,69035.0,0.13016281]
[1729469204581,0.072434,69038.0,69035.0,0.072437]
[1729469204783,0.072434,69038.0,69036.0,0.072436]
[1729469205883,0.072435,69037.0,69036.0,0.072436]
[1729469206597,0.072435,69037.0,69036.0,0.1156377]
[1729469207795,0.072435,69037.0,69036.0,0.1176377]
[1729469208296,0.072435,69037.0,69036.0,0.074436]
[1729469209290,0.02045444,69040.0,69039.0,0.072433]
[1729469209487,0.48724,69043.0,69039.0,0.072433]
[1729469209697,0.072432,69040.0,69039.0,0.072433]
[1729469211699,0.072432,69040.0,69039.0,0.1156347]
[1729469212198,0.5076697,69043.0,69039.0,0.0432017]
[1729469212397,0.5800987,69043.0,69042.0,0.07243]
[1729469213798,0.5800987,69043.0,69042.0,0.1156317]
[1729469213799,0.3812297,69043.0,69042.0,0.1156317]
[1729469214304,0.0204297,69043.0,69042.0,0.07243]
[1729469214502,0.12644,69046.0,69040.0,0.05772581]
[1729469214704,0.12644,69046.0,69044.0,0.072427]
[1729469215004,0.198866,69046.0,69044.0,0.072427]
[1729469215503,0.21955418,69046.0,69044.0,0.072427]
[1729469215803,0.21955418,69046.0,69043.0,0.05772581]
[1729469215804,0.072428,69044.0,69043.0,0.05772581]
[1729469216105,0.072429,69043.0,69042.0,0.05772581]
[1729469216501,0.3608,69045.0,69039.0,0.072433]
[1729469216899,0.433227,69045.0,69044.0,0.05771187]
[1729469217100,0.3608,69045.0,69043.0,0.05771187]
[1729469217402,0.3608,69045.0,69043.0,0.05771153]
[1729469217603,0.3608,69045.0,69037.0,0.072434]
[1729469217808,0.072436,69037.0,69034.0,0.072438]
[1729469218000,0.072436,69037.0,69035.0,0.10505632]
[1729469218201,0.072436,69037.0,69036.0,0.10506203]
[1729469219700,0.072436,69037.0,69036.0,0.19174269]
[1729469220007,0.072436,69037.0,69036.0,0.17749803]
[1729469220192,0.072436,69037.0,69036.0,0.26517869]
[1729469220610,0.072436,69037.0,69036.0,0.30397546]
[1729469220810,0.072436,69037.0,69036.0,0.30497546]
[1729469221007,0.072436,69037.0,69036.0,0.30522566]
[1729469221397,0.14712818,69046.0,69036.0,0.10728769]
[1729469221398,0.02068818,69046.0,69036.0,0.10728769]
[1729469221595,0.43322,69052.0,69042.0,0.3608]
[1729469221796,0.12644,69054.0,69050.0,0.3608]
[1729469222007,0.3608,69060.0,69052.0,0.08677491]
[1729469222305,0.00217254,69067.0,69050.0,0.3608]
[1729469222306,0.07457654,69067.0,69059.0,0.3608]
[1729469222510,0.07457654,69067.0,69065.0,0.072406]
[1729469222697,0.07457654,69067.0,69060.0,0.32491325]
[1729469222698,0.00217254,69067.0,69066.0,0.17769269]
[1729469222899,0.00217254,69067.0,69066.0,0.62524844]
[1729469223100,0.3608,69072.0,69071.0,0.0724]
[1729469223300,0.3608,69072.0,69071.0,0.17768769]
[1729469223499,0.433192,69078.0,69075.0,0.072395]
[1729469223707,0.45434789,69078.0,69076.0,0.07224771]
[1729469224314,0.45434789,69078.0,69073.0,0.07224771]
[1729469225313,0.45434789,69078.0,69076.0,0.05770976]
[1729469225512,0.38195589,69078.0,69076.0,0.05770976]
[1729469225709,0.072393,69077.0,69076.0,0.05770976]
[1729469226417,0.072393,69077.0,69074.0,0.05770976]
[1729469227411,0.072393,69077.0,69076.0,0.04323696]
[1729469227603,0.072393,69077.0,69075.0,0.04323696]
[1729469227808,0.07947715,69076.0,69075.0,0.04323696]
[1729469228010,0.072394,69076.0,69075.0,0.04323696]
[1729469228210,0.0303,69077.0,69074.0,0.04323696]
[1729469228424,0.072395,69075.0,69074.0,0.04323696]
[1729469228713,0.38195589,69078.0,69074.0,0.04323696]
[1729469228910,0.38195589,69078.0,69077.0,0.11562996]
[1729469229313,0.38195589,69078.0,69077.0,0.072393]
[1729469229514,0.02115589,69078.0,69077.0,0.072393]
[1729469229716,0.072383,69087.0,69075.0,0.05770976]
[1729469229908,0.072375,69095.0,69085.0,0.072385]
[1729469230206,0.072376,69094.0,69085.0,0.072385]
[1729469230816,0.02297744,69090.0,69085.0,0.072385]
[1729469232809,0.00217202,69090.0,69084.0,0.04319419]
[1729469233007,0.3608,69109.0,69083.0,0.3608]
[1729469233008,0.0324,69108.0,69089.0,0.49089076]
[1729469233214,0.00217096,69109.0,69108.0,0.072361]
[1729469233419,0.3608,69115.0,69114.0,0.072355]
[1729469233420,0.00711816,69115.0,69114.0,0.072355]
[1729469233609,0.00711816,69115.0,69114.0,0.47628018]
[1729469233610,0.01868816,69115.0,69114.0,0.47628018]
[1729469233813,0.01868816,69115.0,69114.0,0.867235]
[1729469234024,0.01157,69115.0,69114.0,0.867235]
[1729469234318,0.00217044,69125.0,69122.0,0.072345]
[1729469234512,0.00217044,69125.0,69123.0,0.072345]
[1729469234815,0.00217044,69125.0,69123.0,0.072344]
[1729469235407,0.00217044,69125.0,69122.0,0.3608]
[1729469235611,0.07451344,69125.0,69122.0,0.3608]
[1729469236215,0.00217044,69125.0,69111.0,0.072357]
[1729469236421,0.072353,69116.0,69111.0,0.072357]
[1729469237218,0.072354,69115.0,69111.0,0.072357]
[1729469237608,0.16154,69124.0,69111.0,0.072357]
[1729469237808,0.072352,69117.0,69111.0,0.072357]
[1729469238717,0.072352,69117.0,69112.0,0.072357]
[1729469239112,0.16154,69124.0,69112.0,0.072357]
[1729469239319,0.072353,69116.0,69112.0,0.072357]
[1729469240111,0.072354,69115.0,69112.0,0.072357]
[1729469241219,0.072354,69115.0,69113.0,0.072355]
[1729469241529,0.072348,69120.0,69112.0,0.3608]
[1729469241824,0.07235,69119.0,69117.0,0.072351]
[1729469243317,0.07235,69119.0,69112.0,0.3608]
[1729469243318,0.072347,69122.0,69118.0,0.07235]
[1729469243517,0.072347,69122.0,69112.0,0.3608]
[1729469243834,0.02044112,69124.0,69120.0,0.072348]
[1729469244123,0.00217044,69125.0,69120.0,0.072348]
[1729469244323,0.00217044,69125.0,69121.0,0.072347]
[1729469244622,0.00217044,69125.0,69122.0,0.072346]
[1729469244817,0.00217044,69125.0,69123.0,0.072345]
[1729469245918,0.00217044,69125.0,69124.0,0.072344]
[1729469246527,0.00217044,69125.0,69119.0,0.0631]
[1729469246528,0.3608,69129.0,69119.0,0.0631]
[1729469246720,0.3608,69129.0,69126.0,0.072342]
[1729469247024,0.07234,69128.0,69126.0,0.072342]
[1729469248124,0.3608,69129.0,69126.0,0.072342]
[1729469248323,0.02034913,69130.0,69119.0,0.0631]
[1729469248530,0.072341,69128.0,69119.0,0.0631]
[1729469249031,0.072341,69128.0,69125.0,0.072343]
[1729469249225,0.18467313,69134.0,69121.0,0.072347]
[1729469249527,0.18467313,69134.0,69119.0,0.0631]
[1729469249528,0.3608,69131.0,69119.0,0.0631]
[1729469249828,0.3608,69131.0,69118.0,0.433149]
[1729469250029,0.3608,69131.0,69118.0,0.072349]
[1729469250229,0.072345,69124.0,69118.0,0.072349]
[1729469250419,0.07235,69118.0,69115.0,0.11543159]
[1729469250619,0.072352,69117.0,69115.0,0.072353]
[1729469250826,0.072345,69123.0,69112.0,0.04524883]
[1729469251127,0.0313,69123.0,69113.0,0.072356]
[1729469251333,0.072354,69116.0,69113.0,0.072356]
[1729469251633,0.0313,69123.0,69113.0,0.072356]
[1729469251823,0.072354,69115.0,69113.0,0.072356]
[1729469252224,0.072354,69115.0,69114.0,0.072355]
[1729469252421,0.083924,69115.0,69114.0,0.11543359]
[1729469253232,0.083924,69115.0,69114.0,0.072355]
[1729469254222,0.01157,69115.0,69114.0,0.072355]
[1729469254721,0.01157,69115.0,69114.0,0.433155]
[1729469255431,0.01157,69115.0,69114.0,0.60621198]
[1729469255617,0.01157,69115.0,69114.0,0.53397138]
[1729469255821,0.01157,69115.0,69114.0,0.96805138]
[1729469256217,0.433138,69131.0,69129.0,0.072339]
[1729469256421,0.072338,69131.0,69130.0,0.04313486]
[1729469256623,0.09325669,69131.0,69129.0,0.072339]
[1729469256826,0.09325669,69131.0,69130.0,0.072338]
[1729469257131,0.02091869,69131.0,69130.0,0.072338]
[1729469257325,0.02091869,69131.0,69124.0,0.10449144]
[1729469257326,0.033,69143.0,69129.0,0.3608]
[1729469257526,0.0315,69147.0,69138.0,0.072329]
[1729469257527,0.072327,69140.0,69138.0,0.072329]
[1729469258037,0.13192,69146.0,69138.0,0.072329]
[1729469258038,0.072322,69146.0,69138.0,0.072329]
[1729469258333,0.02083541,69144.0,69138.0,0.24434683]
[1729469258533,0.072322,69146.0,69138.0,0.17201783]
[1729469258733,0.072317,69150.0,69145.0,0.072321]
[1729469258932,0.072319,69148.0,69146.0,0.04316305]
[1729469259131,0.072319,69148.0,69147.0,0.04316305]
[1729469259340,0.072319,69148.0,69146.0,0.072321]
[1729469259634,0.072319,69148.0,69139.0,0.10449144]
[1729469259635,0.02059183,69150.0,69147.0,0.12987062]
[1729469259837,0.072319,69148.0,69147.0,0.05755062]
[1729469260227,0.072319,69148.0,69147.0,0.05759192]
[1729469261328,0.072319,69148.0,69143.0,0.3608]
[1729469261329,0.072319,69148.0,69143.0,0.43269144]
[1729469261528,0.13192,69151.0,69143.0,0.43269144]
[1729469261730,0.072318,69149.0,69148.0,0.05761525]
[1729469262328,0.07232,69148.0,69145.0,0.07189144]
[1729469263237,0.07232,69148.0,69143.0,0.3608]
[1729469263238,0.07232,69148.0,69146.0,0.24410992]
[1729469263535,0.07232,69148.0,69147.0,0.07189144]
[1729469263733,0.07232,69148.0,69146.0,0.14421244]
[1729469263932,0.07232,69147.0,69146.0,0.07189144]
[1729469264240,0.15231619,69153.0,69144.0,0.07189144]
[1729469264442,0.072317,69150.0,69149.0,0.05764608]
[1729469264636,0.07232,69148.0,69145.0,0.14421244]
[1729469264937,0.07232,69147.0,69145.0,0.14421244]
[1729469265541,0.07232,69147.0,69145.0,0.072321]
[1729469265732,0.07232,69147.0,69145.0,0.14421244]
[1729469266141,0.00716268,69147.0,69144.0,0.07189144]
[1729469266339,0.072323,69144.0,69143.0,0.3608]
[1729469267226,0.00714024,69147.0,69143.0,0.05763064]
[1729469267227,0.3608,69145.0,69143.0,0.05763064]
[1729469267435,0.3608,69145.0,69142.0,0.05763064]
[1729469267741,0.072324,69143.0,69142.0,0.05763064]
[1729469267944,0.072324,69143.0,69142.0,0.0576318]
[1729469268132,0.072324,69143.0,69141.0,0.072326]
[1729469268442,0.072327,69140.0,69138.0,0.07189144]
[1729469268626,0.072328,69139.0,69138.0,0.07189144]
[1729469269339,0.072328,69139.0,69138.0,0.17232979]
[1729469269543,0.072328,69139.0,69138.0,0.07189144]
[1729469269840,0.072328,69139.0,69138.0,0.10043463]
[1729469270642,0.072328,69139.0,69138.0,0.17248755]
[1729469270841,0.072328,69139.0,69138.0,0.07205292]
[1729469271033,0.083898,69139.0,69138.0,0.07205292]
[1729469271227,0.083898,69139.0,69138.0,0.24483967]
[1729469271641,0.083898,69139.0,69138.0,0.24483666]
[1729469272335,0.083898,69139.0,69138.0,0.17278374]
[1729469272639,0.083898,69139.0,69138.0,0.17252269]
[1729469273034,0.072329,69138.0,69137.0,0.07206795]
[1729469273240,0.072329,69138.0,69137.0,0.17262432]
[1729469274339,0.37237,69139.0,69134.0,0.07206795]
[1729469274529,0.072334,69134.0,69133.0,0.0745047]
[1729469274932,0.072334,69134.0,69133.0,0.0021697]
[1729469276844,0.108344,69134.0,69133.0,0.0021697]
[1729469280750,0.03601,69134.0,69133.0,0.0745047]
[1729469281139,0.03601,69134.0,69133.0,0.0021697]
[1729469281140,0.108344,69134.0,69133.0,0.0021697]
[1729469281753,0.108344,69134.0,69133.0,0.0745047]
[1729469282133,0.108344,69134.0,69133.0,0.0021697]
[1729469282841,0.469144,69134.0,69133.0,0.05989722]
[1729469283240,0.469144,69134.0,69133.0,0.05772752]
[1729469283241,0.39681,69134.0,69133.0,0.05772752]
[1729469283446,0.469144,69134.0,69133.0,0.05772752]
[1729469283957,0.072335,69133.0,69132.0,0.05772752]
[1729469284246,0.072338,69130.0,69129.0,0.07206795]